Cogmind - Beta 14 @@@ ROGUE MODE // 2025.03.02 @ 15:57:41 Player: Harv121 Result: Destroyed by G-34 Mercenary with Small Laser Performance ------------- Evolutions (0) 0 Regions Visited (1) 200 Robots Destroyed (10) 50 Value Destroyed (223) 223 Prototype IDs (0) 0 Alien Tech Used (0) 0 Bonus (0) 0 TOTAL SCORE: 473 Bonus ------- None Cogmind --------- Core Integrity 0/250 Matter 280/300 Energy 73/100 System Corruption 0% Temperature Cool (6) Movement Walking (120) Location -10/Materials Parts ------- > --- POWER (1) -------- (None) > --- PROPULSION (2) --- Aluminum Leg Aluminum Leg > --- UTILITY (2) ------ Large Storage Unit > --- WEAPON (2) ------- (None) > --- INVENTORY (15) --- Wheel Wheel Heat Sink Medium Storage Unit Medium Storage Unit Large Storage Unit Large Matter Pod (0) Structural Scanner Terrain Scanner Peak State ------------ > --- POWER ------------ Light Ion Engine > --- PROPULSION ------- Light Treads Light Treads > --- UTILITY ---------- Large Storage Unit Terrain Scanner > --- WEAPON ----------- Medium Laser Medium Laser > --- INVENTORY -------- Aluminum Leg Aluminum Leg Wheel Wheel Heat Sink Medium Storage Unit Medium Storage Unit Large Storage Unit Structural Scanner Medium Laser [Rating: 8] Favorites ----------- Power Light Ion Engine Engine Light Ion Engine Propulsion Light Treads Treads Light Treads Leg Aluminum Leg Utility Small Storage Unit Device Heat Sink Storage Small Storage Unit Protection Light Armor Plating Weapon Medium Laser Energy Gun Medium Laser Build | -11 -10 ------- Run | Yrd Mat Slots Evolved . | . . Power . | . . Propulsion . | . . Utility . | . . Weapon . | . . Parts Attached 14 | 6 8 Power 1 | 1 . Engine 1 | 1 . Core . | . . Reactor . | . . Propulsion 4 | 2 2 Treads 2 | 2 . Leg 2 | . 2 Wheel . | . . Hover . | . . Flight . | . . Utility 5 | 1 4 Device 2 | . 2 Storage 2 | 1 1 Processor . | . . Hackware . | . . Protection 1 | . 1 Artifact . | . . Weapon 4 | 2 2 Energy Gun 4 | 2 2 Energy Cannon . | . . Ballistic Gun . | . . Ballistic Cannon . | . . Launcher . | . . Special Weapon . | . . Impact Weapon . | . . Slashing Weapon . | . . Piercing Weapon . | . . Special Melee Weapon . | . . Unidentified Prototypes . | . . Parts Lost 7 | . 7 Power 1 | . 1 Propulsion 2 | . 2 Utility 1 | . 1 Weapon 3 | . 3 Highest Loss Streak 7 | . 7 To Critical Strikes . | . . Average Slot Usage (%) 84 | . 84 Engine 12 | . 12 Treads 26 | . 26 Device 4 | . 4 Storage 14 | . 14 Protection 1 | . 1 Energy Gun 25 | . 25 Peak Build Rating 8 | 6 8 Average Rating 5 | 4 6 On Entrance 3 | . 6 Naked Turns . | . . Heaviest Build 28 | 12 28 Greatest Support 40 | 40 40 Greatest Overweight (x) 6 | . 6 Average Overweight (x) . | . . Largest Inventory Capacity 15 | 8 15 Average Capacity 10 | 7 11 Most Carried 12 | 5 12 Average Carried 6 | 2 8 Final Capacity 15 | 8 15 Final Carried 9 | 5 9 Class Distribution -------------------- 100% | Mutant Dominant Class ---------------- Mutant | -10/Materials Resources | -11 -10 ----------- Run | Yrd Mat Matter Collected 307 | 191 116 Remotely . | . . Salvage Created 286 | 27 259 Parts 23 | 5 18 Haulers Intercepted . | . . Recyclers Shooed . | . . Parts Field Recycled . | . . Retrieved Matter . | . . Parts Self-Destructed . | . . Prevented . | . . Kills | -11 -10 ------- Run | Yrd Mat Combat Hostiles Destroyed 5 | . 5 Guns 5 | . 5 Classes Destroyed 4 | 1 3 Builder 2 | . 2 Tunneler 2 | 2 . Watcher 1 | . 1 Grunt 5 | . 5 Best Kill Streak 6 | 1 6 Combat Bots Only 3 | . 3 Max Kills in Single Turn 1 | 1 1 Gunslinging . | . . Exploded . | . . Melee . | . . Uniques/NPCs Destroyed . | . . Combat | -11 -10 -------- Run | Yrd Mat Hostile Shots Fired 114 | . 114 Missed 28 | . 28 Damage Taken 991 | . 991 Core 255 | . 255 Absorbed by Shields . | . . Core Remaining (%) 100 | 100 . Volleys Fired 38 | 11 27 Largest 2 | 2 2 Hottest 100 | 100 100 Shots Fired 76 | 22 54 Gun 76 | 22 54 Cannon . | . . Launcher . | . . Special . | . . Kinetic . | . . Thermal 76 | 22 54 Explosive . | . . Electromagnetic . | . . Robot Hit Streak 13 | 4 13 Robot Miss Streak 3 | 3 2 Penetration Max . | . . Secondary Targets 1 | . 1 Max Gunslinging Chain 1 | . 1 Shots Hit Robots 49 | 13 36 Core Hits 19 | 3 16 Critical Kills . | . . Critical Parts Destroyed . | . . Critical Strikes 3 | 1 2 Burn 3 | 1 2 Melee Attacks . | . . Impact . | . . Slashing . | . . Piercing . | . . Sneak Attacks . | . . Combat Hostiles . | . . Follow-up Attacks . | . . Damage Inflicted 640 | 176 464 Guns 637 | 176 461 Cannons . | . . Explosions . | . . Melee . | . . Ramming 3 | . 3 Kinetic . | . . Thermal 637 | 176 461 Explosive . | . . Electromagnetic . | . . Impact . | . . Slashing . | . . Piercing . | . . Highest Corruption . | . . Average Corruption . | . . Corruption Purged . | . . Corruption Blocked . | . . Overload Shots . | . . Overflow Damage . | . . Projectiles . | . . Explosions . | . . Melee . | . . Knockbacks . | . . Impact . | . . Kinetic . | . . Secondary . | . . Self-Inflicted Damage . | . . Shots . | . . Rammed 1 | . 1 Targets Rammed 1 | . 1 Kicked . | . . Crushed . | . . Highest Temperature 536 | 156 536 Average Temperature 158 | 60 192 Received Heat Transfer 528 | . 528 Effects 6 | . 6 Energy Bleed 2 | . 2 Interference 1 | . 1 Matter Decay 1 | . 1 Short Circuit 1 | . 1 Damage (core) 1 | . 1 Siege Activations . | . . Robots Corrupted . | . . Combat Hostiles . | . . Parts Fried . | . . Impact Corruptions . | . . Robots Melted . | . . Combat Hostiles . | . . Parts Melted 2 | . 2 Heat Transferred 2109 | 592 1517 Parts Sabotaged . | . . Parts Stolen . | . . Parts Stripped . | . . Power Chain Reactions . | . . Alert | -11 -10 ------- Run | Yrd Mat Peak Influence 185 | 10 185 Initial 6 | . 6 Average 59 | 2 82 Maximum Alert Level . | . . Low Security (%) 100 | 100 100 Level 1 . | . . Level 2 . | . . Level 3 . | . . Level 4 . | . . Level 5 . | . . High Security . | . . Max Security . | . . Squads Dispatched 2 | . 2 Investigation 2 | . 2 Extermination . | . . Reinforcement . | . . Assault . | . . Garrison . | . . Intercept . | . . Searches Triggered . | . . Construction Impeded . | . . Haulers Reinforced . | . . Active Scanning Responses . | . . Cargo Convoy Interrupts . | . . Stealth | -11 -10 --------- Run | Yrd Mat Distress Signals . | . . Communications Jammed . | . . Distress Signals . | . . Times Spotted 9 | . 9 Peak Tracking Total 5 | . 5 Tactical Retreats . | . . Traps | -11 -10 ------- Run | Yrd Mat Traps Triggered 2 | . 2 Indirectly . | . . Trap Hack Attempts . | . . Triggered . | . . Disarmed . | . . Reprogrammed . | . . Reused . | . . Traps Extracted . | . . Installed . | . . Triggered . | . . Machines | -11 -10 ---------- Run | Yrd Mat Machines Disabled . | . . Max in Single Turn . | . . Machines Repaired . | . . Machines Dismantled . | . . Machines Sabotaged . | . . Overloaded Fab Kills . | . . Hacking | -11 -10 --------- Run | Yrd Mat Machines Accessed 2 | . 2 Terminals 1 | . 1 Fabricators . | . . Repair Stations . | . . Recycling Units 1 | . 1 Scanalyzers . | . . Garrison Access . | . . Total Hacks 3 | . 3 Successful 1 | . 1 Failed 2 | . 2 Catastrophic 1 | . 1 Database Lockouts . | . . Manual . | . . Terminals 1 | . 1 Fabricators . | . . Repair Stations . | . . Recycling Units 2 | . 2 Scanalyzers . | . . Garrison Access . | . . Terminal Hacks . | . . Fabricator Hacks . | . . Repair Station Hacks . | . . Recycling Unit Hacks 1 | . 1 Report Inventory 1 | . 1 Scanalyzer . | . . Garrison Access Hacks . | . . Unauthorized Hacks . | . . Terminals . | . . Fabricators . | . . Repair Stations . | . . Recycling Units . | . . Scanalyzers . | . . Garrison Access . | . . Data Cores Recovered . | . . Used . | . . Hacking Detections . | . . Full Trace Events . | . . Feedback Events . | . . Feedback Blocked . | . . Robot Schematics Acquired . | . . Robots Built . | . . Authchips . | . . Time . | . . Total Robot Build Rating . | . . Part Schematics Acquired . | . . Parts Built . | . . Authchips . | . . Time . | . . Total Part Build Rating . | . . Parts Repaired . | . . Time . | . . Parts Recycled . | . . Recycled Matter . | . . Retrieved Matter . | . . Retrieved Components . | . . Parts Scanalyzed . | . . Part Schematics Acquired . | . . Parts Damaged . | . . Bothacking | -11 -10 ------------ Run | Yrd Mat Used RIF Installer . | . . Robots Hacked . | . . Non-combat . | . . Combat . | . . Robot Hacks Applied . | . . Relay Couplers Released . | . . Fabnet Peak Effective % . | . . Robots Rewired . | . . Allies Hacked . | . . Hacks Repelled . | . . Allies | -11 -10 -------- Run | Yrd Mat Total Allies . | . . Largest Group . | . . Highest-Rated Group . | . . Highest-Rated Ally . | . . Total Orders . | . . Ally Attacks . | . . Total Damage . | . . Kills . | . . Allies Corrupted . | . . Allies Melted . | . . Intel | -11 -10 ------- Run | Yrd Mat Robot Analysis Total . | . . Derelict Logs Recovered . | . . Drone Launches . | . . Drone Recoveries . | . . Exploration | -11 -10 ------------- Run | Yrd Mat Turns Passed 464 | 135 329 Spaces Moved 195 | 60 135 Core 13 | 11 2 Treads 179 | 49 130 Legs 3 | . 3 Wheels . | . . Hover . | . . Flight . | . . Fastest Speed 50 | 50 120 Average Speed 155 | 139 161 Slowest Speed 350 | 160 350 Overloaded Moves . | . . Propulsion Burnouts . | . . Robots Hopped . | . . Cave-ins Triggered . | . . Exploration Rate (%) 12 | 4 20 Regions Visited 1 Branch Regions . Pre-discovered Areas . | . . Known Exits Taken . | . . Unknown Exits Taken 1 | 1 . Scrap Searched . | . . Spaces Dug . | . . Terrain Destroyed . | . . Melee . | . . Projectile . | . . AOE . | . . Terrain Rammed . | . . Walls Destroyed . | . . Machines Disabled . | . . Actions | -11 -10 --------- Run | Yrd Mat Total 279 | 89 190 Wait 11 | 2 9 Move 194 | 59 135 Hop . | . . Pick Up 19 | 11 8 Fast Attach . | . . Attach 11 | 6 5 Detach 1 | . 1 Swap 3 | . 3 Drop 1 | . 1 Fire 38 | 11 27 Melee . | . . Ram . | . . Kick . | . . Crush 1 | . 1 Escape Stasis . | . . Rewire . | . . Trap . | . . Miscellaneous . | . . Route ------- -11/Scrapyard -10/Materials (discovered 1 exit: [*Mat]) History --------- Turn | Location | Event 57 | -11/Scrapyard | Discovered new exit (range 16) 136 | -11/Scrapyard | Entered Materials 343 | -10/Materials | Build established: Mutant 368 | -10/Materials | Discovered new exit (range 16) 437 | -10/Materials | Core integrity fell below 50% 460 | -10/Materials | Core integrity fell below 20% 465 | -10/Materials | Destroyed by G-34 Mercenary with Small Laser Last Messages --------------- 00422_ Broken Lgt. Ion Engine destroyed. 00428_ Overheating: Matter decay (-25). 00428_ Med. Laser destroyed. 00430_ G-34 Mercenary suffers critical hit (Burn). 00432_ Overheating: Core damaged (-30). 00432_ Med. Laser destroyed. 00433_ Overheating: System interference. 00433_ Med. Laser temporarily disabled. 00434_ Acquired 47 matter. 00435_ M-13 Machinist repairs G-34 Mercenary. 00436_ Lgt. Treads destroyed. 00436_ Slammed into G-34 Mercenary. 00438_ Lgt. Armor Plating destroyed. 00438_ Med. Laser destroyed. 00439_ K-01 Serf collects debris. 00452_ Lgt. Treads destroyed. 00453_ K-01 Serf collects debris. 00461_ M-13 Machinist repairs Aluminum Leg. 00462_ K-01 Serf collects debris. Map ----- +----------------------------------------------------+ | | | | | | | | | | | | | | | | | | | ????????????????????????????????????? | | ????????????????????????????????????? | | ????????????????????????????????????? | | ????????????????????????????????????? | | ????????????????????????????????????? | | ????????????????????????????????????? | | ????????????????????????????????????? | | ????????????????????????????????????? | | ????????????????????????????????????? | | ????????????????????????????????????? | | ????????????????????????????????????? | | ????????????????????????????????????? | | ???????????????????????#####????????? | | ???????????????????????# #????????? | | ???????????????????????# < #????????? | | ???????????????????????# #????????? | | ???????????????????????# @ +????????? | | ???????????????????????# #????????? | | ???????????????????????# #????????? | | ???????????????????????# #????????? | | ???????????????????????# #????????? | | ???????????????????????# k#????????? | | ???????????????????????# #????????? | | ???????????????????????# +????????? | | ??????????????????###### # ???????? | | ??????????????????# #gg # ??????? | | ??????????????????# =+ m #? ?????? | | ??????????????????# [%# g #?? "????? | | ??????????????????# *# #?? "????? | | ??????????????????# # #??? "???? | | ??????????????????# / #???? ???? | | ??????????????????# # #?????#??? | | ??????????????????# # #????????? | | ??????????????????# # ####?????? | | ??????????????????###### !##????? | | ???????????????????????# #????? | | ???????????????????????# #????? | | ?????????############### #????? | | ?????????# # """[# #????? | | ?????????# """ # "Y" +% !##????? | | ?????????# """ # %# ####?????? | +----------------------------------------------------+ Best States ------------- Heat Dissipation 35 Energy Generation 10 Energy Capacity 125 Matter Stores 300 Matter Capacity 300 Sight Range 16 Terrain Scan Range 14 Terrain Scan Density 10 Armor Coverage 150 Evasion (%) 50 Recoil Reduction 2 Item Schematics ----------------- None Robot Schematics ------------------ None Fabricated ------------ Nothing Alien Tech Used ----------------- None Achievements -------------- None Challenges ------------ None Game ------ Seed CryofiberFocalPendant Manual? 0 Play Time 00:10:39 Cumulative 11.3 hours Start 2025.03.02 @ 13:15:57 End 2025.03.02 @ 15:57:41 Sessions 3 Manual Loads 0 Difficulty Rogue Special Mode None Game No. 9 Rogue 9 Adventurer 0 Explorer 0 Win Type - Total 0 Types 0/0/0/0/0/0/0/0/0 Lore% 4 Gallery% 13 Achievement% 18 Wizard Run 0 Options --------- Layout 1 ASCII 0 Keyboard 0 Movement Mouse Keybinds 0 Fullscreen 2 Font 32/SmallcapsGlow Map View 50x35 Zoom Use 0% Tactical HUD 1 Map Filters NONE Filters NONE Steam 1 RUN: 0d7811b3-1a8b-4097-9642-bdbce8e40be1